[Event "*** SCC Grand Prix: Titled Tuesday Blitz"]
[Site "Chess.com"]
[Date "2020.06.09"]
[Round "9"]
[White "kuban1991"]
[Black "g3god"]
[Result "1/2-1/2"]
[WhiteElo "2789"]
[BlackElo "2878"]
[TimeControl "180+1"]
[EndTime "10:46:37 PDT"]
[Termination "Game drawn by stalemate"]

1. Nf3 {[%clk 0:03:00.9]} 1... d5 {[%clk 0:02:59.6]} 2. g3 {[%clk 0:03:00.9]}
2... Bg4 {[%clk 0:02:58.5]} 3. Ne5 {[%clk 0:03:00.5]} 3... Bh5 {[%clk
0:02:57.8]} 4. d4 {[%clk 0:03:00.8]} 4... Nd7 {[%clk 0:02:57.2]} 5. Bg2 {[%clk
0:03:00.9]} 5... e6 {[%clk 0:02:57]} 6. O-O {[%clk 0:03:00.8]} 6... Ngf6 {[%clk
0:02:53.7]} 7. c4 {[%clk 0:03:00.5]} 7... c6 {[%clk 0:02:53.9]} 8. Nc3 {[%clk
0:03:00.4]} 8... Be7 {[%clk 0:02:53]} 9. Qb3 {[%clk 0:02:59.9]} 9... Qb6 {[%clk
0:02:52.6]} 10. Nxd7 {[%clk 0:02:59.8]} 10... Nxd7 {[%clk 0:02:51.4]} 11. e4
{[%clk 0:03:00.3]} 11... dxc4 {[%clk 0:02:50.6]} 12. Qxc4 {[%clk 0:03:00]} 12...
O-O {[%clk 0:02:50.3]} 13. h3 {[%clk 0:02:59.6]} 13... Rfd8 {[%clk 0:02:39.2]}
14. Be3 {[%clk 0:02:55.3]} 14... Qxb2 {[%clk 0:02:34]} 15. Rab1 {[%clk
0:02:47.8]} 15... Qa3 {[%clk 0:02:24.2]} 16. Rxb7 {[%clk 0:02:44]} 16... Nb6
{[%clk 0:02:23.1]} 17. Qb3 {[%clk 0:02:41.7]} 17... Rdb8 {[%clk 0:02:22.5]} 18.
Qxa3 {[%clk 0:02:32.8]} 18... Bxa3 {[%clk 0:02:21.8]} 19. Rxb8+ {[%clk
0:02:33.3]} 19... Rxb8 {[%clk 0:02:21.9]} 20. g4 {[%clk 0:02:26.8]} 20... Bg6
{[%clk 0:02:21.3]} 21. Rb1 {[%clk 0:02:24]} 21... Bd6 {[%clk 0:02:17.5]} 22. f4
{[%clk 0:02:21.1]} 22... f6 {[%clk 0:02:13.2]} 23. Kf2 {[%clk 0:02:09.6]} 23...
Nc4 {[%clk 0:02:12]} 24. Rxb8+ {[%clk 0:02:08.3]} 24... Bxb8 {[%clk 0:02:11.8]}
25. e5 {[%clk 0:02:01.9]} 25... Be8 {[%clk 0:02:05.5]} 26. Bf1 {[%clk
0:01:56.7]} 26... Nxe3 {[%clk 0:02:04]} 27. Kxe3 {[%clk 0:01:57.6]} 27... c5
{[%clk 0:02:03.6]} 28. Bc4 {[%clk 0:01:45.9]} 28... cxd4+ {[%clk 0:02:03.1]} 29.
Kxd4 {[%clk 0:01:46.8]} 29... fxe5+ {[%clk 0:02:03.1]} 30. fxe5 {[%clk
0:01:47.7]} 30... Kf7 {[%clk 0:02:03]} 31. Ne4 {[%clk 0:01:44.2]} 31... Ke7
{[%clk 0:01:59.2]} 32. Ng5 {[%clk 0:01:40.5]} 32... Bd7 {[%clk 0:01:56.7]} 33.
Nxh7 {[%clk 0:01:34.8]} 33... a5 {[%clk 0:01:56.7]} 34. Ng5 {[%clk 0:01:31.7]}
34... Ba7+ {[%clk 0:01:56.6]} 35. Kd3 {[%clk 0:01:30.6]} 35... Bf2 {[%clk
0:01:52.1]} 36. Ne4 {[%clk 0:01:28.5]} 36... Bg1 {[%clk 0:01:47.3]} 37. h4
{[%clk 0:01:20.3]} 37... Bc6 {[%clk 0:01:43.8]} 38. Ng5 {[%clk 0:01:18.8]} 38...
Bd7 {[%clk 0:01:38.4]} 39. h5 {[%clk 0:01:16.8]} 39... Bh2 {[%clk 0:01:33.8]}
40. Nf3 {[%clk 0:01:17.1]} 40... Bg3 {[%clk 0:01:33.2]} 41. g5 {[%clk
0:01:12.5]} 41... Be8 {[%clk 0:01:31.5]} 42. g6 {[%clk 0:00:54.6]} 42... Bc6
{[%clk 0:01:27.7]} 43. Nd4 {[%clk 0:00:53.8]} 43... Bd7 {[%clk 0:01:27.1]} 44.
Ke4 {[%clk 0:00:45.9]} 44... Bh2 {[%clk 0:01:26.3]} 45. h6 {[%clk 0:00:40.7]}
45... gxh6 {[%clk 0:01:25.9]} 46. g7 {[%clk 0:00:41.3]} 46... Kf7 {[%clk
0:01:25.6]} 47. Bxe6+ {[%clk 0:00:40.9]} 47... Bxe6 {[%clk 0:01:23]} 48. Nxe6
{[%clk 0:00:41.8]} 48... h5 {[%clk 0:01:16.7]} 49. Kf5 {[%clk 0:00:35.2]} 49...
h4 {[%clk 0:01:13.9]} 50. Kg4 {[%clk 0:00:17.9]} 50... Bg3 {[%clk 0:00:58.5]}
51. Nf4 {[%clk 0:00:12.4]} 51... Bxf4 {[%clk 0:00:57.7]} 52. Kxf4 {[%clk
0:00:11.9]} 52... Kxg7 {[%clk 0:00:58]} 53. Kg4 {[%clk 0:00:10.4]} 53... Kf7
{[%clk 0:00:58.4]} 54. Kxh4 {[%clk 0:00:10.9]} 54... Ke6 {[%clk 0:00:58.9]} 55.
Kg4 {[%clk 0:00:11.6]} 55... Kxe5 {[%clk 0:00:59.3]} 56. Kf3 {[%clk 0:00:12.2]}
56... Kd4 {[%clk 0:00:59.7]} 57. Ke2 {[%clk 0:00:13]} 57... Kc3 {[%clk
0:00:59.7]} 58. Kd1 {[%clk 0:00:13.6]} 58... Kb2 {[%clk 0:00:59.4]} 59. a4
{[%clk 0:00:14.5]} 59... Kb3 {[%clk 0:00:59.5]} 60. Kc1 {[%clk 0:00:15.4]} 60...
Kxa4 {[%clk 0:00:59.4]} 61. Kb1 {[%clk 0:00:16.3]} 61... Kb3 {[%clk 0:00:59.5]}
62. Ka1 {[%clk 0:00:17.2]} 62... a4 {[%clk 0:01:00]} 63. Kb1 {[%clk 0:00:18.1]}
63... a3 {[%clk 0:01:00.4]} 64. Ka1 {[%clk 0:00:19]} 64... a2 {[%clk 0:01:01]}
1/2-1/2

[Event "*** SCC Grand Prix: Titled Tuesday Blitz"]
[Site "Chess.com"]
[Date "2020.06.09"]
[Round "9"]
[White "Sychev_Klementy"]
[Black "AliKa2810"]
[Result "1-0"]
[WhiteElo "2843"]
[BlackElo "2585"]
[TimeControl "180+1"]
[EndTime "10:46:37 PDT"]
[Termination "Sychev_Klementy won on time"]

1. e4 {[%clk 0:03:00.9]} 1... e5 {[%clk 0:02:59.5]} 2. f4 {[%clk 0:02:58.6]}
2... d5 {[%clk 0:02:58.4]} 3. exd5 {[%clk 0:02:58]} 3... exf4 {[%clk 0:02:58]}
4. Nf3 {[%clk 0:02:57.7]} 4... Nf6 {[%clk 0:02:57.9]} 5. Bb5+ {[%clk 0:02:57.6]}
5... c6 {[%clk 0:02:55.9]} 6. dxc6 {[%clk 0:02:57.5]} 6... Nxc6 {[%clk
0:02:45.7]} 7. d4 {[%clk 0:02:56.6]} 7... Bd6 {[%clk 0:02:43]} 8. Qe2+ {[%clk
0:02:55.2]} 8... Be6 {[%clk 0:02:35.3]} 9. Ng5 {[%clk 0:02:55.2]} 9... O-O
{[%clk 0:02:34.9]} 10. Nxe6 {[%clk 0:02:54.1]} 10... fxe6 {[%clk 0:02:35.8]} 11.
Bxc6 {[%clk 0:02:47.3]} 11... bxc6 {[%clk 0:02:34.9]} 12. O-O {[%clk 0:02:42.5]}
12... Qc7 {[%clk 0:01:53.3]} 13. Qxe6+ {[%clk 0:02:33.6]} 13... Kh8 {[%clk
0:01:53]} 14. Qh3 {[%clk 0:02:31.5]} 14... Rae8 {[%clk 0:01:52.4]} 15. Nc3
{[%clk 0:02:30]} 15... Qb6 {[%clk 0:01:49.1]} 16. Qd3 {[%clk 0:02:12.4]} 16...
c5 {[%clk 0:01:43]} 17. Na4 {[%clk 0:01:15.6]} 17... Qc6 {[%clk 0:01:42.1]} 18.
b3 {[%clk 0:01:14.6]} 18... cxd4 {[%clk 0:01:35.5]} 19. Bxf4 {[%clk 0:01:08.5]}
19... Ng4 {[%clk 0:01:01.1]} 20. Bxd6 {[%clk 0:00:47.6]} 20... Ne3 {[%clk
0:00:55.4]} 21. Rxf8+ {[%clk 0:00:17.6]} 21... Rxf8 {[%clk 0:00:54.7]} 22. Qd2
{[%clk 0:00:15.1]} 22... Qxd6 {[%clk 0:00:52.1]} 23. c3 {[%clk 0:00:13.3]} 23...
Qf4 {[%clk 0:00:40.4]} 24. h3 {[%clk 0:00:10.5]} 24... dxc3 {[%clk 0:00:07.4]}
25. Nxc3 {[%clk 0:00:10.2]} 25... h6 {[%clk 0:00:07.3]} 26. Re1 {[%clk
0:00:09.8]} 26... Nxg2 {[%clk 0:00:03.5]} 27. Qxf4 {[%clk 0:00:06.8]} 27... Nxf4
{[%clk 0:00:03.7]} 28. Re3 {[%clk 0:00:06.2]} 28... Rd8 {[%clk 0:00:03.5]} 29.
Kf2 {[%clk 0:00:04.8]} 29... Rd2+ {[%clk 0:00:03.6]} 30. Kg3 {[%clk 0:00:04.8]}
30... g5 {[%clk 0:00:04.2]} 31. h4 {[%clk 0:00:03.7]} 31... Rg2+ {[%clk
0:00:03.2]} 32. Kf3 {[%clk 0:00:03.6]} 32... Rc2 {[%clk 0:00:02.1]} 33. hxg5
{[%clk 0:00:03.5]} 33... hxg5 {[%clk 0:00:03]} 34. Ne4 {[%clk 0:00:03.9]} 1-0

[Event "*** SCC Grand Prix: Titled Tuesday Blitz"]
[Site "Chess.com"]
[Date "2020.06.09"]
[Round "9"]
[White "sonicdravise"]
[Black "Angel_Hranitel_37"]
[Result "0-1"]
[WhiteElo "2538"]
[BlackElo "2405"]
[TimeControl "180+1"]
[EndTime "10:46:39 PDT"]
[Termination "Angel_Hranitel_37 won by resignation"]

1. Nf3 {[%clk 0:03:00]} 1... Nf6 {[%clk 0:02:59.7]} 2. b3 {[%clk 0:03:00.4]}
2... g6 {[%clk 0:02:57.2]} 3. Bb2 {[%clk 0:03:00.8]} 3... Bg7 {[%clk 0:02:58.1]}
4. d4 {[%clk 0:03:01.1]} 4... O-O {[%clk 0:02:58.6]} 5. g3 {[%clk 0:03:01.6]}
5... d6 {[%clk 0:02:59.5]} 6. Bg2 {[%clk 0:03:02.1]} 6... Nbd7 {[%clk
0:02:59.2]} 7. O-O {[%clk 0:03:02.4]} 7... c6 {[%clk 0:03:00.1]} 8. c4 {[%clk
0:03:00.9]} 8... Qc7 {[%clk 0:03:00.5]} 9. Nc3 {[%clk 0:02:55.5]} 9... Re8
{[%clk 0:03:00.2]} 10. Qc2 {[%clk 0:02:41.5]} 10... e5 {[%clk 0:03:00.2]} 11.
dxe5 {[%clk 0:02:41.4]} 11... dxe5 {[%clk 0:02:55.2]} 12. Rad1 {[%clk 0:02:41]}
12... Nc5 {[%clk 0:02:55.7]} 13. Ng5 {[%clk 0:02:31.6]} 13... Bf5 {[%clk
0:02:32.9]} 14. Nge4 {[%clk 0:02:31.3]} 14... Nfxe4 {[%clk 0:02:22.8]} 15. Nxe4
{[%clk 0:02:30.9]} 15... Rad8 {[%clk 0:02:21.5]} 16. Ba3 {[%clk 0:02:25.3]}
16... Nxe4 {[%clk 0:02:12.1]} 17. Bxe4 {[%clk 0:02:23.3]} 17... Bxe4 {[%clk
0:02:13]} 18. Qxe4 {[%clk 0:02:22.7]} 18... f5 {[%clk 0:02:08.2]} 19. Qb1 {[%clk
0:02:16.9]} 19... e4 {[%clk 0:02:04.3]} 20. Bb2 {[%clk 0:02:13.9]} 20... Be5
{[%clk 0:01:44.7]} 21. Qa1 {[%clk 0:02:09.7]} 21... Rxd1 {[%clk 0:01:06.8]} 22.
Rxd1 {[%clk 0:02:08.1]} 22... e3 {[%clk 0:01:06.6]} 23. f4 {[%clk 0:01:34.3]}
23... Bxf4 {[%clk 0:00:54.5]} 24. gxf4 {[%clk 0:01:16.5]} 24... Qxf4 {[%clk
0:00:55.4]} 25. Rf1 {[%clk 0:00:53.6]} 25... Qg4+ {[%clk 0:00:52.4]} 26. Kh1
{[%clk 0:00:53.7]} 26... Qxe2 {[%clk 0:00:43.2]} 27. Bh8 {[%clk 0:00:50.3]}
27... Re7 {[%clk 0:00:41.4]} 28. Bf6 {[%clk 0:00:41.4]} 28... Rd7 {[%clk
0:00:39]} 29. Qe1 {[%clk 0:00:25.8]} 29... Qd3 {[%clk 0:00:12.1]} 30. Rf3 {[%clk
0:00:23.8]} 30... f4 {[%clk 0:00:05.3]} 31. Rxf4 {[%clk 0:00:18.4]} 31... e2
{[%clk 0:00:05.8]} 32. Bh4 {[%clk 0:00:14.9]} 32... Qe3 {[%clk 0:00:05.8]} 33.
Rf2 {[%clk 0:00:12.3]} 33... Rd1 {[%clk 0:00:06.2]} 34. Rxe2 {[%clk 0:00:10.4]}
34... Qxe2 {[%clk 0:00:06.4]} 35. Qxd1 {[%clk 0:00:08.9]} 35... Qxd1+ {[%clk
0:00:07.3]} 36. Kg2 {[%clk 0:00:08.8]} 36... Qc2+ {[%clk 0:00:08]} 37. Bf2
{[%clk 0:00:08.8]} 37... Qxa2 {[%clk 0:00:08.9]} 38. Kg3 {[%clk 0:00:08.9]}
38... Qxb3+ {[%clk 0:00:09.8]} 39. Kg2 {[%clk 0:00:09.1]} 39... Qxc4 {[%clk
0:00:10.7]} 0-1

[Event "*** SCC Grand Prix: Titled Tuesday Blitz"]
[Site "Chess.com"]
[Date "2020.06.09"]
[Round "9"]
[White "rakshi2005"]
[Black "TST2014"]
[Result "0-1"]
[WhiteElo "2326"]
[BlackElo "2517"]
[TimeControl "180+1"]
[EndTime "10:46:39 PDT"]
[Termination "TST2014 won by resignation"]

1. e4 {[%clk 0:03:00.9]} 1... c5 {[%clk 0:01:48]} 2. Nf3 {[%clk 0:03:00]} 2...
Nc6 {[%clk 0:01:48.3]} 3. Nc3 {[%clk 0:02:59.6]} 3... d6 {[%clk 0:01:48.1]} 4.
Bb5 {[%clk 0:02:58.6]} 4... Bd7 {[%clk 0:01:47.6]} 5. O-O {[%clk 0:02:53.4]}
5... e5 {[%clk 0:01:47]} 6. Bxc6 {[%clk 0:02:47.8]} 6... Bxc6 {[%clk 0:01:46.8]}
7. d3 {[%clk 0:02:45.8]} 7... Be7 {[%clk 0:01:42.6]} 8. Nd2 {[%clk 0:02:44.6]}
8... b5 {[%clk 0:01:40]} 9. f4 {[%clk 0:02:41.9]} 9... exf4 {[%clk 0:01:36.7]}
10. Rxf4 {[%clk 0:02:41.4]} 10... Nf6 {[%clk 0:01:36.2]} 11. Rf1 {[%clk
0:02:39.9]} 11... O-O {[%clk 0:01:35.8]} 12. Nf3 {[%clk 0:02:38.5]} 12... b4
{[%clk 0:01:35.5]} 13. Ne2 {[%clk 0:02:38]} 13... d5 {[%clk 0:01:23.4]} 14. e5
{[%clk 0:02:37.3]} 14... Ne8 {[%clk 0:01:19.2]} 15. Ng3 {[%clk 0:02:34.8]} 15...
g6 {[%clk 0:01:11.4]} 16. Bh6 {[%clk 0:02:33.5]} 16... Ng7 {[%clk 0:01:11.7]}
17. Qd2 {[%clk 0:02:15.2]} 17... f5 {[%clk 0:01:07.2]} 18. exf6 {[%clk 0:02:07]}
18... Bxf6 {[%clk 0:01:07]} 19. Kh1 {[%clk 0:02:03.9]} 19... d4 {[%clk
0:01:07.1]} 20. Rae1 {[%clk 0:02:01.7]} 20... Qd7 {[%clk 0:00:59.8]} 21. Ne4
{[%clk 0:01:59.2]} 21... Be7 {[%clk 0:00:52.1]} 22. Ne5 {[%clk 0:01:49.3]} 22...
Qe6 {[%clk 0:00:44.4]} 23. Rxf8+ {[%clk 0:01:29.2]} 23... Rxf8 {[%clk
0:00:41.7]} 24. Nxc6 {[%clk 0:01:23]} 24... Qxc6 {[%clk 0:00:40.3]} 25. Qe2
{[%clk 0:01:16.6]} 25... Bh4 {[%clk 0:00:37.4]} 26. g3 {[%clk 0:01:08.1]} 26...
Bd8 {[%clk 0:00:35.3]} 27. Rf1 {[%clk 0:01:04.5]} 27... Rxf1+ {[%clk 0:00:29.8]}
28. Qxf1 {[%clk 0:01:05.4]} 28... Nf5 {[%clk 0:00:30.4]} 29. Bf4 {[%clk
0:01:04.1]} 29... c4 {[%clk 0:00:23.1]} 30. Be5 {[%clk 0:01:02.9]} 30... b3
{[%clk 0:00:20.3]} 31. axb3 {[%clk 0:01:00.2]} 31... cxb3 {[%clk 0:00:19.6]} 32.
cxb3 {[%clk 0:00:58.2]} 32... Qd5 {[%clk 0:00:20.1]} 33. Qf4 {[%clk 0:00:54.2]}
33... Qxb3 {[%clk 0:00:19.3]} 34. Qf1 {[%clk 0:00:20.6]} 34... Qxb2 {[%clk
0:00:19]} 35. Nf6+ {[%clk 0:00:13.8]} 35... Bxf6 {[%clk 0:00:18.3]} 36. Bxf6
{[%clk 0:00:14.7]} 36... Ne3 {[%clk 0:00:19.2]} 37. Qf3 {[%clk 0:00:12.8]} 37...
Qc1+ {[%clk 0:00:18.8]} 0-1

[Event "*** SCC Grand Prix: Titled Tuesday Blitz"]
[Site "Chess.com"]
[Date "2020.06.09"]
[Round "9"]
[White "Skatchkov_V"]
[Black "ChessyInstinct"]
[Result "1-0"]
[WhiteElo "2539"]
[BlackElo "2383"]
[TimeControl "180+1"]
[EndTime "10:46:41 PDT"]
[Termination "Skatchkov_V won on time"]

1. Nf3 {[%clk 0:03:00.7]} 1... d5 {[%clk 0:02:59.8]} 2. g3 {[%clk 0:03:00.8]}
2... c6 {[%clk 0:03:00.2]} 3. d4 {[%clk 0:03:00.8]} 3... Nf6 {[%clk 0:03:00.7]}
4. Bg2 {[%clk 0:03:00.9]} 4... Bf5 {[%clk 0:02:56.2]} 5. O-O {[%clk 0:03:00.7]}
5... Nbd7 {[%clk 0:02:56.5]} 6. c4 {[%clk 0:03:00.9]} 6... e6 {[%clk 0:02:56.8]}
7. Nc3 {[%clk 0:03:01]} 7... h6 {[%clk 0:02:55.2]} 8. b3 {[%clk 0:03:00.9]} 8...
Ne4 {[%clk 0:02:52.1]} 9. Bb2 {[%clk 0:03:00.9]} 9... Bd6 {[%clk 0:02:51.6]} 10.
Rc1 {[%clk 0:02:49.8]} 10... O-O {[%clk 0:02:51.2]} 11. Re1 {[%clk 0:02:50.2]}
11... Qa5 {[%clk 0:02:40.5]} 12. Nd2 {[%clk 0:02:04.7]} 12... Nxd2 {[%clk
0:02:28.1]} 13. Qxd2 {[%clk 0:02:04.6]} 13... Nf6 {[%clk 0:02:28.3]} 14. a3
{[%clk 0:01:58.3]} 14... Rfc8 {[%clk 0:02:15.6]} 15. b4 {[%clk 0:01:56.6]} 15...
Qd8 {[%clk 0:02:15.7]} 16. e4 {[%clk 0:01:52.1]} 16... dxe4 {[%clk 0:02:14.5]}
17. Nxe4 {[%clk 0:01:52.9]} 17... Nxe4 {[%clk 0:02:13.9]} 18. Bxe4 {[%clk
0:01:53.6]} 18... Bxe4 {[%clk 0:02:14.4]} 19. Rxe4 {[%clk 0:01:53.3]} 19... Be7
{[%clk 0:02:06.6]} 20. Rd1 {[%clk 0:01:44.1]} 20... a5 {[%clk 0:02:02]} 21. d5
{[%clk 0:01:39.8]} 21... cxd5 {[%clk 0:01:59]} 22. cxd5 {[%clk 0:01:39.8]} 22...
exd5 {[%clk 0:01:39.3]} 23. Rd4 {[%clk 0:01:37.1]} 23... axb4 {[%clk 0:01:24.9]}
24. axb4 {[%clk 0:01:34.1]} 24... Qb6 {[%clk 0:01:16.6]} 25. Rxd5 {[%clk
0:01:33.2]} 25... Qxb4 {[%clk 0:01:09.9]} 26. Qe2 {[%clk 0:01:15.6]} 26... Ra2
{[%clk 0:01:02.5]} 27. Rb5 {[%clk 0:01:15.1]} 27... Qa4 {[%clk 0:00:41.1]} 28.
Rxb7 {[%clk 0:00:41.5]} 28... Bf6 {[%clk 0:00:37.2]} 29. Rd2 {[%clk 0:00:31.3]}
29... Re8 {[%clk 0:00:24]} 30. Qf3 {[%clk 0:00:13.6]} 30... Qa5 {[%clk
0:00:03.3]} 31. Rc2 {[%clk 0:00:05.1]} 31... Qa6 {[%clk 0:00:03.2]} 32. Kg2
{[%clk 0:00:05.3]} 32... Re1 {[%clk 0:00:02]} 33. Rb8+ {[%clk 0:00:06]} 33...
Kh7 {[%clk 0:00:02.1]} 34. Qf5+ {[%clk 0:00:06.4]} 34... g6 {[%clk 0:00:02.5]}
35. Rh8+ {[%clk 0:00:05.9]} 1-0

[Event "*** SCC Grand Prix: Titled Tuesday Blitz"]
[Site "Chess.com"]
[Date "2020.06.09"]
[Round "9"]
[White "nihalsarin"]
[Black "vugarrasulov"]
[Result "0-1"]
[WhiteElo "2978"]
[BlackElo "2831"]
[TimeControl "180+1"]
[EndTime "10:46:46 PDT"]
[Termination "vugarrasulov won by resignation"]

1. e4 {[%clk 0:03:00.9]} 1... e6 {[%clk 0:02:56.8]} 2. d4 {[%clk 0:02:59]} 2...
d5 {[%clk 0:02:57.4]} 3. Nc3 {[%clk 0:02:59.8]} 3... Nf6 {[%clk 0:02:56]} 4. e5
{[%clk 0:03:00.3]} 4... Nfd7 {[%clk 0:02:56.4]} 5. f4 {[%clk 0:03:00.7]} 5... c5
{[%clk 0:02:57]} 6. Nf3 {[%clk 0:03:01.4]} 6... Nc6 {[%clk 0:02:57.3]} 7. Be3
{[%clk 0:03:02]} 7... Qb6 {[%clk 0:02:57.1]} 8. Na4 {[%clk 0:02:53.7]} 8... Qa5+
{[%clk 0:02:55]} 9. c3 {[%clk 0:02:54.1]} 9... c4 {[%clk 0:02:53.7]} 10. b4
{[%clk 0:02:02.6]} 10... Nxb4 {[%clk 0:02:51.6]} 11. cxb4 {[%clk 0:02:03.5]}
11... Bxb4+ {[%clk 0:02:51.9]} 12. Kf2 {[%clk 0:02:04.1]} 12... b5 {[%clk
0:02:50.9]} 13. Nc5 {[%clk 0:01:49.2]} 13... Nxc5 {[%clk 0:02:50.3]} 14. dxc5
{[%clk 0:01:50.1]} 14... Bd7 {[%clk 0:02:47.4]} 15. Be2 {[%clk 0:01:23.1]} 15...
Bc3 {[%clk 0:02:32.5]} 16. Rc1 {[%clk 0:01:16.1]} 16... b4 {[%clk 0:02:32.7]}
17. Bd4 {[%clk 0:01:01]} 17... Ba4 {[%clk 0:02:27.3]} 18. Qg1 {[%clk 0:00:51.2]}
18... Bxd4+ {[%clk 0:02:25.7]} 19. Nxd4 {[%clk 0:00:52.1]} 19... Qxc5 {[%clk
0:02:25.6]} 20. Kg3 {[%clk 0:00:52.7]} 20... O-O {[%clk 0:02:11.7]} 21. f5
{[%clk 0:00:51.6]} 21... Rae8 {[%clk 0:01:54.5]} 22. fxe6 {[%clk 0:00:39.6]}
22... fxe6 {[%clk 0:01:50.5]} 23. Qe3 {[%clk 0:00:40.2]} 23... Bd7 {[%clk
0:01:44]} 24. Bh5 {[%clk 0:00:38.2]} 24... Rb8 {[%clk 0:01:41.7]} 25. Rhe1
{[%clk 0:00:27.2]} 25... a5 {[%clk 0:01:39.5]} 26. Bg4 {[%clk 0:00:27.6]} 26...
Qe7 {[%clk 0:01:34.8]} 27. Nf3 {[%clk 0:00:23.7]} 27... a4 {[%clk 0:01:26.8]}
28. Qa7 {[%clk 0:00:23.8]} 28... b3 {[%clk 0:01:25]} 29. axb3 {[%clk 0:00:23.3]}
29... axb3 {[%clk 0:01:25.6]} 30. h4 {[%clk 0:00:22]} 30... b2 {[%clk
0:01:22.4]} 31. Rb1 {[%clk 0:00:22.2]} 31... c3 {[%clk 0:01:22.5]} 32. Re2
{[%clk 0:00:22.8]} 32... Qf7 {[%clk 0:01:08.4]} 33. Ng5 {[%clk 0:00:18.2]} 33...
Qf4+ {[%clk 0:01:02.2]} 34. Kh3 {[%clk 0:00:18.7]} 34... h5 {[%clk 0:01:02.6]}
35. Bxh5 {[%clk 0:00:07.2]} 35... Qf5+ {[%clk 0:01:02.7]} 36. Kh2 {[%clk
0:00:05.1]} 36... Qxb1 {[%clk 0:00:59.2]} 37. Qxd7 {[%clk 0:00:05.2]} 37... Qf5
{[%clk 0:00:41.9]} 38. Nxe6 {[%clk 0:00:05.3]} 38... Rf7 {[%clk 0:00:41.4]} 39.
Bxf7+ {[%clk 0:00:02.9]} 39... Qxf7 {[%clk 0:00:42.3]} 40. Qd6 {[%clk
0:00:01.9]} 40... b1=Q {[%clk 0:00:42.3]} 41. Ng5 {[%clk 0:00:02.6]} 41... Qf4+
{[%clk 0:00:18]} 42. g3 {[%clk 0:00:02.5]} 42... Qg1+ {[%clk 0:00:18.4]} 43.
Kxg1 {[%clk 0:00:02.5]} 43... Qxg3+ {[%clk 0:00:19.3]} 0-1

[Event "*** SCC Grand Prix: Titled Tuesday Blitz"]
[Site "Chess.com"]
[Date "2020.06.09"]
[Round "9"]
[White "HElissalt"]
[Black "mamonika"]
[Result "1-0"]
[WhiteElo "2202"]
[BlackElo "1934"]
[TimeControl "180+1"]
[EndTime "10:46:47 PDT"]
[Termination "HElissalt won on time"]

1. c4 {[%clk 0:03:00.9]} 1... Nf6 {[%clk 0:02:57.4]} 2. Nc3 {[%clk 0:03:00.8]}
2... d6 {[%clk 0:02:57.6]} 3. d3 {[%clk 0:02:59.2]} 3... e5 {[%clk 0:02:57]} 4.
Nf3 {[%clk 0:02:58.5]} 4... g6 {[%clk 0:02:57.2]} 5. Bg5 {[%clk 0:02:58.2]} 5...
Bg7 {[%clk 0:02:57.5]} 6. g3 {[%clk 0:02:54.6]} 6... O-O {[%clk 0:02:54.9]} 7.
Bg2 {[%clk 0:02:54.5]} 7... Be6 {[%clk 0:02:47.1]} 8. O-O {[%clk 0:02:52.4]}
8... Nbd7 {[%clk 0:02:46.8]} 9. Qc1 {[%clk 0:02:49.1]} 9... c6 {[%clk
0:02:38.1]} 10. Bh6 {[%clk 0:02:45]} 10... Ne8 {[%clk 0:02:15.9]} 11. Bxg7
{[%clk 0:02:41.4]} 11... Nxg7 {[%clk 0:02:15.7]} 12. b4 {[%clk 0:02:16.9]} 12...
f5 {[%clk 0:02:12.8]} 13. b5 {[%clk 0:02:16.3]} 13... Nf6 {[%clk 0:01:56.5]} 14.
bxc6 {[%clk 0:02:12.7]} 14... bxc6 {[%clk 0:01:56.4]} 15. Qa3 {[%clk 0:02:09.9]}
15... Qc7 {[%clk 0:01:52.2]} 16. Rab1 {[%clk 0:01:45.3]} 16... Rab8 {[%clk
0:01:50.9]} 17. Nd2 {[%clk 0:01:28.8]} 17... Rxb1 {[%clk 0:01:45]} 18. Rxb1
{[%clk 0:01:26.4]} 18... Bd7 {[%clk 0:01:35.4]} 19. Qa6 {[%clk 0:01:23.2]} 19...
Rb8 {[%clk 0:01:10.3]} 20. Rxb8+ {[%clk 0:01:20.3]} 20... Qxb8 {[%clk
0:01:10.5]} 21. Nb3 {[%clk 0:01:19.3]} 21... Qb6 {[%clk 0:01:08.2]} 22. Qxb6
{[%clk 0:01:04.3]} 22... axb6 {[%clk 0:01:07.9]} 23. Na4 {[%clk 0:01:04.9]}
23... b5 {[%clk 0:01:04.3]} 24. Nb6 {[%clk 0:01:04.6]} 24... Be8 {[%clk
0:00:54.7]} 25. Na5 {[%clk 0:00:55]} 25... e4 {[%clk 0:00:31.9]} 26. Nb7 {[%clk
0:00:48.8]} 26... d5 {[%clk 0:00:24.3]} 27. cxb5 {[%clk 0:00:29.7]} 27... cxb5
{[%clk 0:00:24.1]} 28. Nc5 {[%clk 0:00:28.9]} 28... Kf7 {[%clk 0:00:18.6]} 29.
d4 {[%clk 0:00:28.8]} 29... Ne6 {[%clk 0:00:18.2]} 30. e3 {[%clk 0:00:26.2]}
30... Nxc5 {[%clk 0:00:17.6]} 31. dxc5 {[%clk 0:00:25.3]} 31... Nd7 {[%clk
0:00:12.7]} 32. Nxd7 {[%clk 0:00:21.7]} 32... Bxd7 {[%clk 0:00:13]} 33. Kf1
{[%clk 0:00:20.7]} 33... Ke7 {[%clk 0:00:13.3]} 34. Ke1 {[%clk 0:00:20.5]} 34...
Kd8 {[%clk 0:00:13.8]} 35. Kd2 {[%clk 0:00:20.7]} 35... Kc7 {[%clk 0:00:14.2]}
36. Kc3 {[%clk 0:00:20.8]} 36... Kc6 {[%clk 0:00:14.1]} 37. Kd4 {[%clk 0:00:21]}
37... b4 {[%clk 0:00:12.5]} 38. Bf1 {[%clk 0:00:21.1]} 38... Bc8 {[%clk
0:00:10.5]} 39. Be2 {[%clk 0:00:21]} 39... Bb7 {[%clk 0:00:09.4]} 40. h4 {[%clk
0:00:20.4]} 40... h5 {[%clk 0:00:05.4]} 41. Bd1 {[%clk 0:00:20.1]} 41... Ba6
{[%clk 0:00:02.3]} 42. Ba4+ {[%clk 0:00:19.9]} 42... Kc7 {[%clk 0:00:02.6]} 43.
Kxd5 {[%clk 0:00:18.4]} 43... Bd3 {[%clk 0:00:01.5]} 44. Bb3 {[%clk 0:00:18.4]}
44... Kd7 {[%clk 0:00:01.1]} 45. Ke5 {[%clk 0:00:18.3]} 45... Kc6 {[%clk
0:00:01.6]} 46. Kd4 {[%clk 0:00:18.2]} 1-0